[Event "German Bundesliga 2021-22"]
[Site "Germany"]
[Date "2022.04.10"]
[Round "4.13"]
[White "Georgiadis, Nico"]
[Black "Predojevic, Borki"]
[Result "1/2-1/2"]
[ECO "B11"]
[WhiteElo "2562"]
[BlackElo "2585"]
[Annotator "TA"]
[PlyCount "68"]
[EventDate "2022.03.05"]
[EventType "team-tourn"]
[EventCountry "GER"]
[SourceTitle "playchess.com"]
[Source "ChessBase"]
[SourceQuality "1"]
[TimeControl "40/5400+30:1800+30"]

{[%evp 10,68,29,22,33,34,24,31,36,30,19,28,45,54,57,55,50,58,72,64,61,65,60,59,53,15,0,0,7,9,0,0,0,5,43,0,0,6,18,25,47,38,48,8,43,41,43,16,6,0,0,0,0,0,0,0,14,13,16,13,25]} 1. e4 {[%emt 0:00:00]} c6 {[%emt 0:00:00]} 2. Nf3 {[%emt 0:00:00]} d5 {[%emt 0:00:00]} 3. Nc3 {[%emt 0:00:00]} dxe4 {[%emt 0:00:00]} 4. Nxe4 {[%emt 0:00:00]} Nf6 {[%emt 0:00:00]} 5. Qe2 {[%emt 0:00:00]} Nxe4 {[%emt 0:00:00]} 6. Qxe4 {[%emt 0:00:00]} Nd7 {[%emt 0:00:00] B11: Caro-Kann: Two Knights Variation.} 7. Bc4 {[%emt 0:00:00] Threatens to win with Ng5.} Nf6 {[%emt 0:00:00] [#]} 8. Ne5 $1 {[%emt 0:00:00][%csl Ge5][%cal Rc4f7]} e6 {[%emt 0:00:00] White is slightly better.} 9. Qe2 {[%emt 0:00:00]} b5 {[%emt 0:00:00]} 10. Bd3 {[%emt 0:00:00]} ({Of course not} 10. Nxc6 Qc7 11. Bd3 (11. Bxb5 a6 $17) 11... a6 $15) 10... Qc7 {[%emt 0:14:57]} 11. a4 {[%emt 0:00:00]} Bd6 {[%emt 0:00:15] [#]} 12. Nxc6 {[%emt 0:00:00]} b4 {[%emt 0:00:09]} (12... Qxc6 $2 13. Bxb5 Qd7 14. Bxd7+ $18) 13. Nd4 $1 {[%emt 0:00:00]} a6 {[%emt 0:00:06] [#] Prevents Nb5.} 14. Nf5 $1 {[%emt 0:00:00]} Bb7 {[%emt 0:00:21]} 15. Nxd6+ {[%emt 0:00:00]} ({Much worse is} 15. Nxg7+ Kd7 $15) 15... Qxd6 {[%emt 0:00:05] [#]} 16. f3 $146 {[%emt 0:00:00]} (16. O-O {seems wilder.} Rc8 17. Re1 Rc5 18. Qe3) ({Predecessor:} 16. O-O h5 17. Qe3 Rd8 18. f3 h4 19. b3 Nd5 20. Qf2 f5 21. Bb2 Nf4 22. Rfe1 Nxd3 23. cxd3 {½-½ (39) Sindarov,J (2609)-Bluebaum,M (2642) Warsaw 2021}) 16... Nd5 {[%emt 0:51:57]} 17. g3 {[%emt 0:08:51] Inhibits Nf4.} b3 {[%emt 0:05:35]} 18. c3 {[%emt 0:00:25] Against Nb4} h5 $1 {[%emt 0:00:03]} 19. Be4 {[%emt 0:00:58] White wants to play d4.} h4 $1 {[%emt 0:04:22]} 20. Rg1 {[%emt 0:00:10]} hxg3 {[%emt 0:01:39]} 21. hxg3 {[%emt 0:00:07]} O-O-O {[%emt 0:11:21]} 22. Qc4+ {[%emt 0:24:19]} Kb8 {[%emt 0:00:10]} 23. Qxb3 {[%emt 0:00:16] aiming for d4.} f5 {[%emt 0:06:47]} 24. Bxd5 {[%emt 0:01:12]} Qxd5 {[%emt 0:01:13]} 25. Qxd5 {[%emt 0:00:27]} Bxd5 {[%emt 0:00:03]} 26. Kf2 {[%emt 0:15:12] Threatening d3.} Rh2+ {[%emt 0:01:30]} 27. Rg2 $1 {[%emt 0:07:41]} Rh1 {[%emt 0:01:04]} 28. d4 {[%emt 0:03:40] Bf4+ is the strong threat.} Kc8 {[%emt 0:00:03] The position is equal.} 29. b4 {[%emt 0:15:32]} Rdh8 {[%emt 0:00:03]} 30. Bb2 {[%emt 0:03:21]} Rxa1 {[%emt 0:00:04]} 31. Bxa1 {[%emt 0:00:05]} Rh1 {[%emt 0:00:03]} 32. Rg1 {[%emt 0:00:12]} Rxg1 {[%emt 0:01:25]} 33. Kxg1 {[%emt 0:00:10]} Bxf3 {[%emt 0:00:01]} 34. c4 {[%emt 0:08:33]} Bd1 {[%emt 0:00:07] Weighted Error Value: White=0.06 (flawless) /Black=0.05 (flawless)} 1/2-1/2

[Event "German Bundesliga 2021-22"]
[Site "Germany"]
[Date "2022.04.10"]
[Round "4.13"]
[White "Baldauf, Marco"]
[Black "Gavrilescu, David"]
[Result "1/2-1/2"]
[ECO "D37"]
[WhiteElo "2522"]
[BlackElo "2512"]
[Annotator "TA"]
[PlyCount "47"]
[EventDate "2022.03.05"]
[EventType "team-tourn"]
[EventCountry "GER"]
[SourceTitle "playchess.com"]
[Source "ChessBase"]
[SourceQuality "1"]
[TimeControl "40/5400+30:1800+30"]

{[%evp 12,47,20,20,13,11,8,18,22,18,20,9,12,9,19,0,0,0,0,0,0,0,0,0,0,0,0,0,8,0,0,-203,0,0,0,0,0,0]} 1. d4 {[%emt 0:00:00]} d5 {[%emt 0:00:00]} 2. c4 {[%emt 0:00:00]} e6 {[%emt 0:00:00]} 3. Nf3 {[%emt 0:00:00]} Nf6 {[%emt 0:00:00]} 4. Nc3 {[%emt 0:00:00]} Nbd7 {[%emt 0:00:00]} 5. Bg5 {[%emt 0:00:00]} c6 {[%emt 0:00:00]} 6. cxd5 {[%emt 0:00:00]} exd5 {[%emt 0:00:00]} 7. e3 {[%emt 0:00:00]} h6 {[%emt 0:00:00] D35: Queen's Gambit Declined: Exchange Variation.} 8. Bh4 {[%emt 0:00:30]} g5 {[%emt 0:00:00]} 9. Bg3 {[%emt 0:00:04]} Nh5 {[%emt 0:00:00]} 10. Bd3 {[%emt 0:02:58]} Nxg3 {[%emt 0:00:00]} 11. hxg3 {[%emt 0:00:04]} Bg7 {[%emt 0:00:00]} 12. Qc2 {[%emt 0:01:08]} Nb6 {[%emt 0:00:00]} 13. O-O-O {[%emt 0:03:40]} Be6 {[%emt 0:00:00]} 14. Kb1 {[%emt 0:07:07]} Qe7 {[%emt 0:00:00]} 15. Rc1 {[%emt 0:05:48]} O-O-O {[%emt 0:00:00]} 16. Na4 {[%emt 0:00:36][%cal Bc3a4,Ba4c5,Bc5a6,Ba6c7][%mdl 32]} Kb8 {[%emt 0:00:00]} 17. Nc5 {[%emt 0:10:31]} Bc8 {[%emt 0:00:04]} 18. Nd2 {[%emt 0:05:11]} Nd7 {[%emt 0:09:16]} 19. Ndb3 {[%emt 0:04:53] [#]} Bf8 $146 {[%emt 0:04:18]} ({Predecessor:} 19... Nxc5 20. Nxc5 h5 21. Qa4 h4 22. gxh4 Rxh4 23. Rxh4 gxh4 {½-½ (75) Zhou,J (2615)-Liang,J (2326) Dulles 2021}) 20. Na6+ {[%emt 0:12:14] Pair of Knights!} Ka8 $1 {[%emt 0:05:07]} 21. Nc7+ {[%emt 0:00:24]} Kb8 {[%emt 0:00:05]} 22. Na6+ {[%emt 0:00:04] The position is equal.} Ka8 $1 {[%emt 0:00:04]} 23. Nc7+ {[%emt 0:00:08]} Kb8 {[%emt 0:00:04]} 24. Na6+ $1 {[%emt 0:02:48] Weighted Error Value: White=0.02 (flawless) /Black=0.01 (flawless)} 1/2-1/2

[Event "German Bundesliga 2021-22"]
[Site "Germany"]
[Date "2022.04.10"]
[Round "4.13"]
[White "Boensch, Uwe"]
[Black "Grigorian, Spartak"]
[Result "0-1"]
[ECO "E51"]
[WhiteElo "2494"]
[BlackElo "2477"]
[Annotator "TA"]
[PlyCount "68"]
[EventDate "2022.03.05"]
[EventType "team-tourn"]
[EventCountry "GER"]
[SourceTitle "playchess.com"]
[Source "ChessBase"]
[SourceQuality "1"]
[TimeControl "40/5400+30:1800+30"]

{[%evp 13,68,0,0,-13,-5,-6,0,0,2,5,2,5,4,10,20,25,19,10,29,21,29,27,56,34,33,18,42,35,56,82,72,-31,-42,-45,-39,-36,-17,-16,-21,-5,-10,-34,-26,-53,-33,-53,-13,-103,-83,-73,0,-37,-31,-1006,-999,-945,-899]} 1. d4 {[%emt 0:00:00]} Nf6 {[%emt 0:00:00]} 2. c4 {[%emt 0:00:00]} e6 {[%emt 0:00:00]} 3. Nc3 {[%emt 0:00:00]} Bb4 {[%emt 0:00:00]} 4. e3 {[%emt 0:00:00]} O-O {[%emt 0:00:00]} 5. Bd2 {[%emt 0:00:00]} b6 {[%emt 0:00:00]} 6. Nf3 {[%emt 0:00:00]} d5 {[%emt 0:08:35]} 7. cxd5 {[%emt 0:00:00]} exd5 {[%emt 0:00:13]} 8. Bd3 {[%emt 0:06:18] E51: Nimzo-Indian: Rubinstein: 4...0-0 5 Nf3 d5.} Bd6 {[%emt 0:01:18] [#]} 9. Qc2 $146 {[%emt 0:09:14]} ({Predecessor:} 9. O-O Re8 10. Rc1 c5 11. Bb5 Bd7 12. b3 a6 13. Bxd7 Nbxd7 14. dxc5 Nxc5 15. Ne2 Nce4 {½-½ (34) Anton Guijarro,D (2675)-Giri,A (2764) chess24.com INT 2020}) 9... Re8 {[%emt 0:19:05]} 10. Nb5 {[%emt 0:01:35] The position is equal.} Ba6 {[%emt 0:02:59]} 11. Nxd6 {[%emt 0:05:27]} Bxd3 {[%emt 0:08:28]} 12. Qxd3 {[%emt 0:00:11]} Qxd6 {[%emt 0:07:07]} 13. O-O {[%emt 0:00:26]} Ne4 {[%emt 0:03:24]} 14. Rac1 {[%emt 0:12:56]} Nd7 {[%emt 0:16:39]} 15. Rc2 {[%emt 0:20:55]} Rac8 {[%emt 0:10:53]} 16. Rfc1 {[%emt 0:06:22]} c5 {[%emt 0:05:00]} 17. b3 {[%emt 0:04:19] Prevents c4.} Nf8 {[%emt 0:03:47]} 18. dxc5 {[%emt 0:06:52]} (18. Bb4 $5) 18... bxc5 {[%emt 0:00:19]} 19. Ba5 {[%emt 0:00:10]} Nd7 {[%emt 0:04:07][%cal Bf8d7,Bd7e5,Be5d3,Bd3c1][%mdl 32]} 20. Nd2 {[%emt 0:09:56]} Nxf2 {[%emt 0:04:02]} 21. Kxf2 {[%emt 0:00:01] aiming for Kg1.} Ne5 {[%emt 0:00:03] [#]} 22. Qf5 {[%emt 0:11:59]} (22. Qe2 $1 $16) 22... g6 $36 {[%emt 0:00:09][%mdl 2048] Black has some pressure.} 23. Qh3 {[%emt 0:00:09] And now Kg1 would win.} Nd3+ {[%emt 0:01:49]} 24. Kg1 {[%emt 0:00:08] Hoping for Rf1.} Nxc1 {[%emt 0:01:34]} 25. Rxc1 {[%emt 0:00:02]} Qa6 {[%emt 0:00:07]} 26. b4 {[%emt 0:02:16]} cxb4 {[%emt 0:02:48][%mdl 64] [#] Discovered Attack} 27. Rxc8 {[%emt 0:00:07]} Rxc8 {[%emt 0:00:53][%cal Be8c8,Bc8c1,Bc1c2,Bc2a2][%mdl 32]} 28. Bxb4 {[%emt 0:00:17]} Rc1+ {[%emt 0:00:12]} 29. Kf2 {[%emt 0:00:01]} Qb6 {[%emt 0:00:55][%mdl 1024] Black has compensation.} ({But not} 29... Rc2 30. Qd7 Qf6+ 31. Ke2 Qa6+ 32. Kf3 Qf6+ 33. Ke2 (33. Kg4 h5+ 34. Kg3 Qe5+ 35. Kf3 Rxa2 $15) 33... Qa6+ 34. Kf2 Qf6+ 35. Ke2 $16) 30. Nb3 {[%emt 0:02:50]} Rc2+ {[%emt 0:00:21]} 31. Bd2 {[%emt 0:00:01]} a5 {[%emt 0:00:38] &Nero is more active.} (31... Qb7 $17 32. Ke1 Rxa2) 32. Qd7 {[%emt 0:00:18]} Rxa2 {[%emt 0:00:32] Chess con chili.} 33. Kg3 $2 {[%emt 0:01:30][%mdl 8192]} Qb8+ $19 {[%emt 0:00:27]} 34. Kh3 {[%emt 0:02:17]} a4 {[%emt 0:00:04] Weighted Error Value: White=0.45/Black=0.10 (very precise)} 0-1

[Event "German Bundesliga 2021-22"]
[Site "Germany"]
[Date "2022.04.10"]
[Round "4.13"]
[White "Coenen, Michael"]
[Black "Gustafsson, Jan"]
[Result "0-1"]
[ECO "C58"]
[WhiteElo "2326"]
[BlackElo "2643"]
[Annotator "TA"]
[PlyCount "56"]
[EventDate "2022.03.05"]
[EventType "team-tourn"]
[EventCountry "GER"]
[SourceTitle "playchess.com"]
[Source "ChessBase"]
[SourceQuality "1"]
[TimeControl "40/5400+30:1800+30"]

{[%evp 14,56,27,40,33,28,29,26,35,20,20,24,23,-66,-72,-64,-71,-73,-58,-116,-111,-104,-110,-111,-104,-104,0,-106,-14,-19,-8,-636,-634,-634,-634,-594,-582,-762,-70,-70,-69,-1532,-1511,-1246,-1123]} 1. e4 {[%emt 0:00:00]} e5 {[%emt 0:00:00]} 2. Nf3 {[%emt 0:00:00]} Nc6 {[%emt 0:00:00]} 3. Bc4 {[%emt 0:00:00]} Nf6 {[%emt 0:00:00]} 4. Ng5 {[%emt 0:00:00]} d5 {[%emt 0:00:00]} 5. exd5 {[%emt 0:00:00]} Na5 {[%emt 0:00:00]} 6. Bb5+ {[%emt 0:00:00]} c6 {[%emt 0:00:00]} 7. dxc6 {[%emt 0:00:00]} bxc6 {[%emt 0:00:00]} 8. Bd3 {[%emt 0:00:00] is recently more successful than 8.Be2.} Nd5 {[%emt 0:00:00] C58: Two Knights: 4 Ng5 d5 5 exd5 Na5 sidelines.} 9. Nf3 {[%emt 0:00:00]} (9. Qh5 g6 10. Nxf7 gxh5 $17) (9. h4 {is interesting.} Nf4 10. Bf1 Bc5 11. c3) 9... Bd6 {[%emt 0:00:00]} 10. O-O {[%emt 0:00:00]} O-O {[%emt 0:00:00] White has an edge.} 11. Re1 {[%emt 0:02:51]} f5 {[%emt 0:00:00]} 12. Nxe5 {[%emt 0:07:06] Hoping for Bf1.} Qf6 $1 {[%emt 0:00:00]} (12... Qh4 13. Bf1 $18) 13. Nc4 {[%emt 0:08:25]} (13. Nf3 $11) 13... Nxc4 $15 {[%emt 0:00:00]} 14. Bxc4 {[%emt 0:00:07] Threatens to win with d4.} Qh4 {[%emt 0:29:15][%csl LRc4,LRh2]} 15. Bxd5+ {[%emt 0:00:41]} cxd5 {[%emt 0:00:09][%cal Bc6d5,Bd5d4][%mdl 32]} 16. g3 {[%emt 0:05:31]} (16. h3 $1 $15) 16... Qh3 $17 {[%emt 0:06:20][%mdl 1024] Black has strong compensation.} 17. f4 {[%emt 0:22:19]} d4 $1 $36 {[%emt 0:02:21][%mdl 2048] Black is really pushing.} 18. Qf3 {[%emt 0:01:18] [#] Against Bb7} Rb8 {[%emt 0:00:52] aiming for ...Bb7.} 19. Qf1 {[%emt 0:07:56] [#]} (19. Qd5+ $2 Kh8 20. Qg2 (20. Qxd6 $2 Bb7 $19) 20... Qh6 $19) 19... Qg4 {[%emt 0:17:37]} (19... Qxf1+ 20. Kxf1 Ba6+ 21. d3 $15) (19... Qh6 $1 $17 {And now ...Bb7 would win.} 20. b4 (20. Qc4+ Kh8 $17) 20... Bb7 21. Qc4+ Kh8) 20. Qe2 {[%emt 0:04:38]} ({Of course not} 20. Qc4+ Kh8 21. Qe2 (21. Qxd4 $2 Bb7 $19) 21... Qxe2 22. Rxe2 d3 $17) (20. b3 $11 {remains equal.}) 20... Qg6 {[%emt 0:12:51]} (20... Qxe2 $17 21. Rxe2 d3) 21. d3 $1 $11 {[%emt 0:06:34]} ({But not} 21. Qc4+ Kh8 22. Qxd4 Bb7 $17) 21... Bd7 {[%emt 0:03:08] [#]} 22. Na3 $146 {[%emt 0:01:57][%mdl 8192]} (22. Qf2 $11) ({Predecessor:} 22. Qf2 Bc6 23. Nd2 Qf7 24. Nf3 Qd5 25. Kg2 h6 26. b3 g5 27. fxg5 hxg5 28. Bxg5 Rb7 29. Rf1 f4 30. gxf4 Bxf4 31. Bxf4 Rxf4 32. Qg3+ Rg7 33. Qxg7+ Kxg7 {0-1 (33) Shkapenko,P (2424)-Demchenko,A (2641) Chess.com INT 2020}) 22... Rfe8 $19 {[%emt 0:10:04]} 23. Qf2 {[%emt 0:01:14]} Rxe1+ {[%emt 0:00:17]} 24. Qxe1 {[%emt 0:00:05]} Re8 {[%emt 0:06:02]} 25. Qf2 {[%emt 0:03:06]} Bxa3 $2 {[%emt 0:01:41]} (25... Qh5 $19 {( -> ...Qd1+)} 26. Bd2 Re2) 26. bxa3 $15 {[%emt 0:01:00]} Qh5 $1 {[%emt 0:00:35] 0x0.0025b66fe5f3dp-1022s more active pieces.} 27. Qf1 {[%emt 0:14:38][%mdl 8192] Inhibits Qd1.} (27. Bb2 $15 Re2 28. g4 Qxg4+ 29. Qg3) 27... Re2 $19 {[%emt 0:01:01][%csl Ge2][%cal Rh5h2]} 28. h3 {[%emt 0:00:47]} Qe8 {[%emt 0:00:40] Weighted Error Value: White=0.75/Black=0.41} 0-1

[Event "German Bundesliga 2021-22"]
[Site "Germany"]
[Date "2022.04.10"]
[Round "4.14"]
[White "Bacrot, Etienne"]
[Black "Harff, Marcel"]
[Result "1-0"]
[ECO "C02"]
[WhiteElo "2642"]
[BlackElo "2367"]
[Annotator "TA"]
[PlyCount "51"]
[EventDate "2022.03.05"]
[EventType "team-tourn"]
[EventCountry "GER"]
[SourceTitle "playchess.com"]
[Source "ChessBase"]
[SourceQuality "1"]
[TimeControl "40/5400+30:1800+30"]

{[%evp 14,51,31,20,82,81,85,72,64,69,97,103,85,70,111,104,146,185,202,214,238,224,247,232,218,225,363,354,601,569,1321,1192,2377,2333,1979,1318,1255,1114,29995,29996]} 1. e4 {[%emt 0:00:00]} e6 {[%emt 0:00:00]} 2. d4 {[%emt 0:00:00]} d5 {[%emt 0:00:00]} 3. e5 {[%emt 0:00:00]} c5 {[%emt 0:00:00]} 4. c3 {[%emt 0:00:00]} Nc6 {[%emt 0:00:00]} 5. Nf3 {[%emt 0:00:00]} Bd7 {[%emt 0:00:00]} 6. Be2 {[%emt 0:00:00]} Qb6 {[%emt 0:00:00]} 7. O-O {[%emt 0:00:00]} cxd4 {[%emt 0:00:00]} 8. cxd4 {[%emt 0:00:00]} Nh6 {[%emt 0:00:00] C02: French: Advance Variation.} (8... Nge7 $11 {keeps the balance.}) 9. Bxh6 $16 {[%emt 0:09:55] Bc1 is the strong threat.} gxh6 {[%emt 0:00:00]} 10. Qd2 {[%emt 0:04:16]} Bg7 {[%emt 0:00:00] White is better.} 11. Nc3 {[%emt 0:05:31][%cal Bb1c3,Bc3d1,Bd1e3][%mdl 32] [#]} Ne7 $146 {[%emt 0:00:00]} ({Predecessor:} 11... O-O 12. Rac1 Rac8 13. Bd3 f6 14. exf6 Rxf6 15. Ne5 Nxe5 16. dxe5 Rf7 17. Na4 Qd8 {½-½ (58) Petkov,M (2426)-Jianu,V (2527) Tornelo INT 2021}) 12. Bd3 {[%emt 0:08:32]} O-O {[%emt 0:00:00]} 13. Rae1 {[%emt 0:03:51]} Rfc8 {[%emt 0:00:17]} 14. h4 {[%emt 0:07:13][%cal Bh2h4,Bh4h5][%mdl 32] &Bianco is more active.} Ng6 {[%emt 0:05:46]} 15. h5 {[%emt 0:03:30]} Nf8 {[%emt 0:00:11]} 16. Nd1 {[%emt 0:03:55]} a5 {[%emt 0:02:04]} 17. a3 {[%emt 0:04:58]} Bb5 {[%emt 0:00:10]} 18. Bxb5 {[%emt 0:00:46]} Qxb5 {[%emt 0:00:09] [#]} 19. Ne3 $1 {[%emt 0:00:03]} Rc7 {[%emt 0:06:45]} (19... Qe8 $142 20. Ng4 Nd7 21. Nxh6+ Bxh6 22. Qxh6 Qf8) 20. Ng4 $18 {[%emt 0:02:39]} Nd7 $2 {[%emt 0:00:43]} (20... Kh8 21. Nxh6 Rac8) 21. Nxh6+ {[%emt 0:03:57]} Bxh6 {[%emt 0:01:29]} 22. Qxh6 {[%emt 0:00:04]} Qxb2 {[%emt 0:00:10]} 23. Ng5 {[%emt 0:01:09]} Nf8 {[%emt 0:00:43]} 24. Qf6 {[%emt 0:01:21] White threatens h6 and mate.} h6 {[%emt 0:00:07] [#]} 25. Re3 $1 {[%emt 0:01:55][%cal Oe3g3] Rg3! would kill now.} hxg5 {[%emt 0:03:22]} (25... Nh7 26. Qxh6) 26. h6 {Weighted Error Value: White=0.03 (flawless) /Black=0.90} 1-0

[Event "German Bundesliga 2021-22"]
[Site "Germany"]
[Date "2022.04.10"]
[Round "4.14"]
[White "Teclaf, Pawel"]
[Black "Jakubowski, Krzysztof"]
[Result "1-0"]
[ECO "C77"]
[WhiteElo "2542"]
[BlackElo "2475"]
[Annotator "TA"]
[PlyCount "109"]
[EventDate "2022.03.05"]
[EventType "team-tourn"]
[EventCountry "GER"]
[SourceTitle "playchess.com"]
[Source "ChessBase"]
[SourceQuality "1"]
[TimeControl "40/5400+30:1800+30"]

{[%evp 12,109,7,6,10,6,9,18,12,0,5,9,12,0,12,-3,0,0,0,-3,0,0,0,-5,14,0,22,16,28,30,74,76,72,76,72,75,143,93,140,142,145,139,234,218,216,123,252,245,292,292,277,193,194,190,163,92,108,102,99,105,101,74,92,92,127,134,146,146,275,143,268,250,410,381,1077,1101,867,918,872,542,158,153,29958,29963,29965,29966,29965,29963,29945,12833,29969,29965,29971,29970,29962,11882,29985,29986,29985,29986]} 1. e4 {[%emt 0:00:00]} e5 {[%emt 0:00:00]} 2. Nf3 {[%emt 0:00:00]} Nc6 {[%emt 0:00:00]} 3. Bb5 {[%emt 0:00:00]} a6 {[%emt 0:00:00]} 4. Ba4 {[%emt 0:00:00]} Nf6 {[%emt 0:00:00]} 5. d3 {[%emt 0:00:00]} d6 {[%emt 0:00:00]} 6. c4 {[%emt 0:00:00]} Bg4 {[%emt 0:00:00]} 7. Nc3 {[%emt 0:08:56]} Be7 {[%emt 0:00:00] C71: Ruy Lopez: Deferred Steinitz Variation, sidelines.} 8. h3 {[%emt 0:16:47]} Bxf3 {[%emt 0:02:06]} 9. Qxf3 {[%emt 0:00:10]} O-O {[%emt 0:00:08] The position is equal.} 10. Ne2 {[%emt 0:11:28]} Nd7 {[%emt 0:05:50]} 11. O-O {[%emt 0:00:39]} Rb8 {[%emt 0:11:18]} 12. a3 {[%emt 0:11:51]} Nc5 {[%emt 0:11:19] [#]} 13. Bxc6 $146 {[%emt 0:05:51]} ({Predecessor:} 13. Bc2 Ne6 14. Be3 g6 15. Qg3 Bf6 16. b4 Bg7 17. Ba4 Ned4 18. Ra2 Ne6 19. Bxc6 bxc6 {0-1 (64) Lukov,V (2430)-Toshkov,T (2385) Sofia 1981}) 13... bxc6 {[%emt 0:00:20]} 14. b4 $1 {[%emt 0:00:05]} Ne6 {[%emt 0:03:03]} 15. Be3 {[%emt 0:03:50]} a5 {[%emt 0:15:33]} 16. Rab1 {[%emt 0:06:23]} axb4 {[%emt 0:03:02]} 17. axb4 {[%emt 0:00:12]} Rb7 {[%emt 0:10:33]} 18. d4 {[%emt 0:07:53]} exd4 {[%emt 0:02:11]} 19. Nxd4 {[%emt 0:00:12]} Nxd4 {[%emt 0:03:49]} 20. Bxd4 {[%emt 0:00:08]} Bf6 {[%emt 0:00:31]} 21. e5 $1 {[%emt 0:01:09] &Bianco is more active.} Bxe5 {[%emt 0:00:25] [#]} 22. Qxc6 $1 {[%emt 0:00:50]} Qb8 {[%emt 0:04:00]} 23. Bxe5 {[%emt 0:01:46]} dxe5 {[%emt 0:00:06]} (23... Rb6 $142 24. Qd5 dxe5) 24. Qc5 {[%emt 0:01:19]} (24. b5 $142) 24... Re8 {[%emt 0:05:48]} ({Better is} 24... f6) 25. Rfd1 $16 {[%emt 0:02:22]} Qc8 {[%emt 0:02:15]} 26. Rd5 {[%emt 0:02:48]} Qe6 {[%emt 0:09:44]} (26... c6 $16 27. Rxe5 Rxe5 28. Qxe5 Qb8) 27. Rbd1 $1 $18 {[%emt 0:03:55][%cal Od5e5] And now Rxe5! would win.} h6 {[%emt 0:03:55]} 28. b5 {[%emt 0:03:03] Against c6} (28. Rd7 $18) 28... e4 {[%emt 0:02:08]} (28... Qe7 $16 {might work better.}) 29. Rd8 {[%emt 0:06:10]} Rxd8 {[%emt 0:01:18]} 30. Rxd8+ {[%emt 0:00:06][%mdl 4096] Endgame KQR-KQR} Kh7 {[%emt 0:00:03]} 31. Qd5 {[%emt 0:03:02]} Qxd5 {[%emt 0:01:56]} 32. Rxd5 {[%emt 0:00:02] KR-KR} Kg6 {[%emt 0:00:37]} 33. Re5 {[%emt 0:02:29]} (33. Kf1 $18) 33... c6 {[%emt 0:02:39]} 34. bxc6 {[%emt 0:00:41]} Rc7 {[%emt 0:00:09]} 35. Rxe4 {[%emt 0:01:05]} Rxc6 {[%emt 0:00:06]} 36. f3 {[%emt 0:01:44]} f5 {[%emt 0:01:31]} 37. Rd4 {[%emt 0:00:21]} Kf6 {[%emt 0:00:07]} 38. Kf2 {[%emt 0:00:10]} g5 {[%emt 0:00:30] [#]} 39. Ke3 $1 {[%emt 0:01:31]} f4+ {[%emt 0:02:11]} (39... h5 $16 40. Kd3 Ra6) 40. Ke2 {[%emt 0:01:00]} ({White should try} 40. Kd3 $18) 40... Ke6 {[%emt 0:00:38] [#]} (40... Rb6 $16 41. Kd3 Rb3+ 42. Ke4 Ke6) 41. Kd3 $1 {[%emt 0:00:00]} Ra6 $2 {[%emt 0:00:00]} (41... Kf6 42. Kc3 Ke5 43. Rd5+ Ke6) 42. c5 {[%emt 0:06:23][%cal Bc4c5,Bc5c6][%mdl 32]} Ra3+ $2 {[%emt 0:03:06]} (42... h5 43. Kc3 Ra8 44. Rd6+ Kf7) 43. Kc4 {[%emt 0:01:17]} Ra2 {[%emt 0:00:06]} 44. c6 {[%emt 0:02:52]} Rxg2 {[%emt 0:00:49]} 45. Rd3 {[%emt 0:07:19] Strongly threatening Kb3.} Rc2+ {[%emt 0:23:13]} 46. Kb5 {[%emt 0:00:06] aiming for Kb6.} Ke7 $2 {[%emt 0:00:05]} (46... h5 $16 47. Kb6 Rb2+ 48. Ka6 g4 49. fxg4 hxg4 50. hxg4 f3 51. Rxf3 Kd6 52. Rf6+ Kc7) 47. Kb6 {[%emt 0:03:32]} Rb2+ {[%emt 0:01:48]} 48. Ka7 {[%emt 0:00:10]} Ra2+ {[%emt 0:00:05]} 49. Kb7 {[%emt 0:00:24]} Rb2+ {[%emt 0:00:05]} 50. Kc8 {[%emt 0:00:55] White wants to mate with c7.} Rb4 {[%emt 0:04:43]} 51. c7 {[%emt 0:01:43]} Rb1 {[%emt 0:00:42]} 52. Rd7+ {[%emt 0:00:33]} Ke8 {[%emt 0:00:54]} 53. Rd6 {[%emt 0:03:05] Threatening mate with Re6+.} Rb3 {[%emt 0:00:55]} 54. Re6+ {[%emt 0:01:19]} Kf7 {[%emt 0:00:10]} 55. Kd7 {[%emt 0:00:12] Weighted Error Value: White=0.18 (very precise) /Black=0.59} 1-0